bitfinex/quotes_SOLUSD_20241218
["timestamp","ask_amount","ask_price","bid_price","bid_amount"]
[1734492807007,11.01723249,218.07,217.99,11.01723249]
[1734492807187,11.01723249,218.07,218.0,11.01723249]
[1734492807188,22.03446449,218.07,218.0,11.01723249]
[1734492807582,11.017232,218.07,218.03,11.01723249]
[1734492807890,0.19689315,218.1,218.04,11.01723249]
[1734492809733,23.97377715,218.1,218.04,11.01723249]
[1734492813718,34.99100964,218.1,218.03,11.01723249]
[1734492814203,34.79411649,218.1,218.03,11.01723249]
[1734492814525,23.776884,218.1,218.04,11.01723249]
[1734492818139,23.776884,218.11,218.04,7.04127916]
[1734492818629,20.0,218.02,217.91,1.597]
[1734492818830,23.776884,218.01,217.92,7.04127916]
[1734492819034,30.81816316,218.01,217.92,7.04127916]
[1734492820117,34.78906185,218.01,217.93,11.01217785]
[1734492820632,34.78906185,218.01,217.91,1.597]
[1734492820834,11.01217785,217.97,217.91,1.597]
[1734492821012,23.776884,217.96,217.91,1.597]
[1734492822017,23.776884,217.96,217.89,11.01217785]
[1734492822207,11.01217785,217.93,217.85,1.597]
[1734492822537,23.776884,217.92,217.85,12.60917785]
[1734492822833,11.01217785,217.91,217.85,1.597]
[1734492823005,23.776884,217.9,217.83,11.01217785]
[1734492825522,11.01217785,217.89,217.8,1.597]
[1734492825829,11.4723,217.92,217.8,1.597]
[1734492825830,23.776884,217.84,217.8,1.597]
[1734492826524,23.776884,217.84,217.78,1.0]
[1734492826843,11.01217785,217.83,217.78,1.0]
[1734492827042,23.776884,217.82,217.78,1.0]
[1734492828337,23.776884,217.86,217.79,11.01217785]
[1734492833147,23.41908438,217.86,217.79,11.01217785]
[1734492836121,17.8854,217.97,217.85,11.01217785]
[1734492836320,11.01217785,217.94,217.86,11.01217785]
[1734492836873,11.01217785,217.93,217.86,11.01217785]
[1734492838378,11.01217785,217.93,217.85,11.01217785]
[1734492839251,11.012178,217.96,217.85,12.63527785]
[1734492839452,11.01217785,217.98,217.89,11.01217785]
[1734492839755,24.102877,218.01,217.91,11.01217785]
[1734492839983,11.01217785,217.97,217.89,11.01217785]
[1734492841096,23.776884,217.96,217.89,11.01217785]
[1734492841288,11.01217785,217.95,217.87,11.01217785]
[1734492841447,11.01217785,217.94,217.87,11.01217785]
[1734492841782,11.01217785,217.94,217.85,1.6231]
[1734492841783,23.776884,217.93,217.85,12.63527785]
[1734492842553,23.776884,217.93,217.86,11.01217785]
[1734492842851,23.776884,217.93,217.87,11.01217785]
[1734492843052,11.01217785,217.96,217.88,11.01217785]
[1734492843671,23.776884,217.95,217.88,11.01217785]
[1734492844086,23.776884,217.97,217.88,11.01217785]
[1734492844285,11.01217785,217.95,217.88,11.01217785]
[1734492846164,23.776884,217.94,217.88,11.01217785]
[1734492846387,23.776884,217.94,217.86,11.01217785]
[1734492850106,30.82892073,217.94,217.85,1.6231]
[1734492850260,30.82892073,217.94,217.86,7.05203673]
[1734492850795,30.82892073,217.94,217.85,1.6231]
[1734492851092,23.776884,217.91,217.85,1.6231]
[1734492856291,7.05203673,217.9,217.79,1.6137]
[1734492856597,0.6886,217.97,217.79,1.6137]
[1734492856598,7.05203673,217.86,217.79,1.6137]
[1734492857292,23.776884,217.85,217.79,1.6137]
[1734492858297,23.776884,217.85,217.79,8.66573673]
[1734492858499,27.05203673,217.9,217.83,7.05203673]
[1734492858669,11.4699,217.96,217.83,7.05203673]
[1734492858874,7.05203673,217.93,217.85,7.05203673]
[1734492859989,23.776884,217.92,217.85,7.05203673]
[1734492860193,7.05203673,217.91,217.83,7.05203673]
[1734492865492,23.776884,217.92,217.85,7.05203673]
[1734492865697,7.05203673,217.95,217.87,7.05203673]
[1734492865897,20.0,217.96,217.88,7.05203673]
[1734492866202,7.05203673,217.96,217.88,7.05203673]
[1734492866409,7.05203673,217.97,217.89,7.05203673]
[1734492867683,57.57154692,218.04,217.91,7.05203673]
[1734492867684,23.776884,217.96,217.91,7.05203673]
[1734492867902,23.776884,217.97,217.91,7.05203673]
[1734492868412,7.05203673,217.98,217.91,7.05203673]
[1734492869681,23.776884,217.97,217.91,7.05203673]
[1734492870910,22.38050648,218.01,217.94,7.05203673]
[1734492871510,15.32846975,218.01,217.95,7.05203673]
[1734492871678,15.32846975,218.01,217.89,0.68815172]
[1734492871679,12.635277,218.01,217.96,7.05203673]
[1734492871883,7.05203673,218.04,217.97,7.05203673]
[1734492872112,12.635277,218.02,217.98,7.05203673]
[1734492872311,7.05203673,218.05,217.98,7.05203673]
[1734492872625,14.186622,218.05,218.0,7.05203673]
[1734492872785,14.186622,218.05,218.01,7.05203673]
[1734492872991,14.27545369,218.12,217.97,1.6137]
[1734492872992,7.05203673,218.09,218.02,7.05203673]
[1734492873211,14.10407273,218.08,218.01,7.05203673]
[1734492874700,23.776884,218.07,218.01,7.05203673]
[1734492877932,7.052036,218.08,218.04,7.05203673]
[1734492878393,7.05203673,218.1,218.03,7.05203673]
[1734492878597,30.82892073,218.07,217.97,7.6303]
[1734492878819,7.05203673,218.07,218.0,7.05203673]
[1734492879730,7.05203673,218.08,218.01,7.05203673]
[1734492880023,7.05203673,218.07,217.97,7.6303]
[1734492880231,30.82892073,218.06,217.99,7.05203673]
[1734492880726,7.052037,218.11,217.99,7.05203673]
[1734492880727,7.05203673,218.07,217.99,7.05203673]
[1734492881226,23.776884,218.06,217.99,7.05203673]
[1734492882602,30.82892073,218.06,217.99,7.05203673]
[1734492882801,23.776884,218.06,217.99,7.05203673]
[1734492883908,30.82892073,218.06,217.99,7.05203673]
[1734492884110,30.82892073,218.06,217.91,6.4185]
[1734492884111,7.05203673,218.01,217.91,6.4185]
[1734492884311,7.05203673,218.0,217.91,8.0423]
[1734492884638,7.05203673,218.0,217.93,7.05203673]
[1734492884804,7.05203673,218.01,217.94,7.05203673]
[1734492889565,23.776884,218.01,217.95,7.05203673]
[1734492891422,30.82892073,218.01,217.91,8.0423]
[1734492891625,30.82892073,218.01,217.94,7.05203673]
[1734492891835,23.776884,218.01,217.95,7.05203673]
[1734492893051,23.776884,218.01,217.91,8.0423]
[1734492893052,30.82892073,218.01,217.91,8.0423]
[1734492893249,30.82892073,218.01,217.93,7.05203673]
[1734492893545,7.05203673,217.97,217.91,1.6238]
[1734492894550,30.82892073,217.98,217.91,8.67583673]
[1734492894859,7.05203673,217.97,217.91,1.6238]
[1734492895439,7.05203673,217.95,217.86,7.8481]
[1734492895645,7.05203673,217.95,217.88,7.05203673]
[1734492896236,30.82892073,217.96,217.88,7.05203673]
[1734492896433,23.776884,217.98,217.91,7.05203673]
[1734492896646,23.776884,217.99,217.93,7.05203673]
[1734492898155,23.776884,218.0,217.93,7.05203673]
[1734492898529,7.05203673,218.01,217.94,7.05203673]
[1734492899238,7.24892988,218.02,217.89,20.6881594]
[1734492899564,7.24892988,218.02,217.93,7.05203673]
[1734492899565,7.05203673,218.0,217.93,7.05203673]
[1734492899759,30.82892073,217.99,217.91,7.05203673]
[1734492899931,7.05203673,217.98,217.91,7.05203673]
[1734492900265,23.776884,217.97,217.89,7.05203673]
[1734492900430,7.05203673,217.96,217.88,7.05203673]
[1734492900630,23.776884,217.95,217.86,7.8481]
[1734492900828,7.05203673,217.93,217.87,7.05203673]
[1734492901133,7.05203673,217.93,217.86,8.68333673]
[1734492901531,23.776884,217.92,217.86,1.6313]
[1734492902123,7.05203673,217.91,217.86,1.6313]
[1734492902345,23.776884,217.9,217.82,7.05203673]
[1734492902523,7.05203673,217.89,217.82,7.05203673]
[1734492903565,23.776884,217.88,217.82,7.05203673]
[1734492904048,23.776884,217.88,217.81,17.38106945]
[1734492904734,23.776884,217.91,217.85,11.02426945]
[1734492908751,11.02426945,217.93,217.86,11.02426945]
[1734492908960,17.543,217.97,217.87,11.02426945]
[1734492908961,20.0,217.94,217.87,11.02426945]
[1734492909356,11.02426945,217.94,217.87,11.02426945]
[1734492910063,11.02426945,217.93,217.85,11.02426945]
[1734492910263,23.776884,217.92,217.85,11.02426945]
[1734492910638,23.776884,217.92,217.86,11.02426945]
[1734492911532,11.02426945,217.94,217.86,11.02426945]
[1734492912391,11.02426945,217.95,217.87,11.02426945]
[1734492912687,20.0,217.9,217.85,11.02426945]
[1734492912889,20.0,217.9,217.83,11.02426945]
[1734492913048,23.776884,217.89,217.83,11.02426945]
[1734492913243,20.0,217.9,217.83,11.02426945]
[1734492913443,11.02426945,217.93,217.85,11.02426945]
[1734492913676,23.776884,217.92,217.85,11.02426945]
[1734492913865,11.02426945,217.94,217.87,11.02426945]
[1734492914076,11.02426945,217.95,217.87,11.02426945]
[1734492914557,11.02426945,217.97,217.9,11.02426945]
[1734492914755,11.02426945,217.98,217.91,11.02426945]
[1734492916071,23.776884,217.97,217.91,11.02426945]
[1734492916463,11.02426945,217.99,217.91,11.02426945]
[1734492917498,11.02426945,218.0,217.93,11.02426945]
[1734492917646,11.02426945,218.0,217.92,11.02426945]
[1734492918083,11.02426945,217.98,217.91,11.02426945]
[1734492918456,23.776884,217.97,217.91,11.02426945]
[1734492918677,34.80115345,217.97,217.89,11.02426945]
[1734492920087,34.80115345,217.97,217.9,11.02426945]
[1734492920277,23.776884,217.97,217.9,11.02426945]
[1734492920476,11.02426945,217.98,217.9,11.02426945]
[1734492920790,23.776884,217.98,217.92,11.02426945]
[1734492920994,0.19689315,218.02,217.93,11.02426945]
[1734492920995,11.02426945,218.0,217.93,11.02426945]
[1734492921289,0.19689315,218.02,217.94,11.02426945]
[1734492921473,11.02426945,218.01,217.93,11.02426945]
[1734492922360,11.02426945,217.98,217.9,17.42516945]
[1734492923100,23.776884,217.97,217.91,11.02426945]
[1734492923298,11.02426945,218.01,217.93,11.02426945]
[1734492923458,0.19689315,218.02,217.93,11.02426945]
[1734492923662,11.02426945,218.0,217.93,11.02426945]
[1734492924189,0.19689315,218.02,217.93,11.02426945]
[1734492924396,11.02426945,218.0,217.93,11.02426945]
[1734492929803,0.19689315,218.02,217.93,11.02426945]
[1734492930002,7.04747726,218.01,217.93,7.04747726]
[1734492931210,0.19689315,218.02,217.98,7.04747726]
[1734492931380,0.19689315,218.02,218.01,7.04747726]
[1734492934006,0.6886,218.14,218.01,11.00107861]
[1734492934007,11.00107861,218.11,218.01,11.00107861]
[1734492934610,11.00107861,218.12,218.05,11.00107861]
[1734492935091,23.776884,218.11,218.05,11.00107861]
[1734492935675,23.776884,218.11,218.04,11.00107861]
[1734492936296,11.001079,218.16,218.07,11.00107861]
[1734492936622,11.00107861,218.15,218.08,11.00107861]
[1734492937005,11.00107861,218.16,218.09,11.00107861]
[1734492937487,11.00107861,218.15,218.08,11.00107861]
[1734492938105,11.00107861,218.16,218.09,11.00107861]
[1734492938716,8.26483872,218.22,218.12,11.00107861]
[1734492938881,0.6886,218.24,218.13,11.00107861]
[1734492939077,17.40497861,218.28,218.15,11.00107861]
[1734492939315,11.00107861,218.21,218.15,11.00107861]
[1734492939523,11.00107861,218.21,218.14,11.00107861]
[1734492940393,11.00107861,218.22,218.15,11.00107861]
[1734492940588,11.00107861,218.24,218.17,11.00107861]
[1734492940916,11.00107861,218.25,218.18,11.00107861]
[1734492941083,11.00107861,218.26,218.19,11.00107861]
[1734492941588,11.00107861,218.26,218.2,11.00107861]
[1734492941788,11.00107861,218.27,218.2,11.00107861]
[1734492942123,11.00107861,218.28,218.21,11.00107861]
[1734492942954,11.00107861,218.28,218.22,11.00107861]
[1734492944508,11.00107861,218.25,218.18,12.52297861]
[1734492944692,11.00107861,218.23,218.18,1.5219]
[1734492945036,23.776884,218.27,218.19,11.00107861]
[1734492945338,11.00107861,218.26,218.19,11.00107861]
[1734492945704,34.77796261,218.27,218.2,11.00107861]
[1734492946314,11.00107861,218.28,218.21,11.00107861]
[1734492946519,11.00107861,218.29,218.21,11.00107861]
[1734492946995,11.00107861,218.24,218.18,1.5219]
[1734492949598,11.00107861,218.25,218.18,12.52297861]
[1734492949932,11.00107861,218.25,218.18,1.5219]
[1734492956062,23.776884,218.25,218.18,8.55317837]
[1734492956263,9.10068659,218.33,218.2,7.03127837]
[1734492956581,7.03127837,218.27,218.18,8.55317837]
[1734492957542,7.03127837,218.27,218.2,7.03127837]
[1734492957878,20.0,218.3,218.2,7.03127837]
[1734492958088,7.03127837,218.28,218.2,7.03127837]
[1734492958935,7.03127837,218.3,218.22,7.03127837]
[1734492959136,11.4494,218.36,218.24,7.03127837]
[1734492959137,14.14508799,218.36,218.24,7.03127837]
[1734492959362,0.6886,218.39,218.2,0.68719248]
[1734492959363,0.6886,218.39,218.27,7.03127837]
[1734492959557,7.03127837,218.34,218.27,7.03127837]
[1734492960171,7.03127837,218.36,218.27,8.64157837]
[1734492960543,6.4703,218.42,218.3,7.03127837]
[1734492960741,7.03127837,218.38,218.3,7.03127837]
[1734492960980,7.03127837,218.36,218.29,7.03127837]
[1734492961543,7.03127837,218.37,218.3,7.03127837]
[1734492962446,6.4703,218.42,218.29,7.03127837]
[1734492962649,7.03127837,218.36,218.29,7.03127837]
[1734492963248,7.03127837,218.35,218.27,1.6103]
[1734492963470,7.03127837,218.33,218.27,1.6103]
[1734492963672,7.03127837,218.32,218.27,1.6103]
[1734492963849,7.03127837,218.33,218.27,1.6103]
[1734492964274,7.03127837,218.34,218.27,8.64157837]
[1734492964640,23.776884,218.33,218.27,8.64157837]
[1734492964865,30.80816237,218.33,218.27,1.6103]
[1734492966756,17.9164,218.42,218.28,7.03127837]
[1734492967083,7.03127837,218.35,218.28,7.03127837]
[1734492967758,7.03127837,218.35,218.27,1.6103]
[1734492968173,23.776884,218.34,218.27,1.6103]
[1734492968561,17.9164,218.42,218.29,7.03127837]
[1734492968762,17.9164,218.42,218.3,7.03127837]
[1734492968985,7.03127837,218.39,218.3,7.03127837]
[1734492969389,7.03127837,218.37,218.3,7.03127837]
[1734492969573,7.03127837,218.37,218.29,7.03127837]
[1734492970282,6.4703,218.42,218.27,1.6103]
[1734492970283,7.03127837,218.35,218.27,1.6103]
[1734492970465,7.03127837,218.35,218.27,8.64157837]
[1734492971302,7.03127837,218.31,218.24,7.03127837]
[1734492971478,23.776884,218.28,218.22,1.5026]
[1734492972187,30.80816237,218.28,218.22,1.5026]
[1734492972698,23.776884,218.28,218.22,1.5026]
[1734492974020,34.7605005,218.28,218.22,1.5026]
[1734492974826,23.776884,218.25,218.17,12.4862165]
[1734492975132,23.776884,218.25,218.19,10.9836165]
[1734492975703,23.776884,218.25,218.17,12.4862165]
[1734492975902,23.776884,218.25,218.19,10.9836165]
[1734492976897,10.9836165,218.22,218.17,1.5026]
[1734492977191,10.9836165,218.22,218.13,10.9836165]
[1734492978408,10.9836165,218.22,218.15,10.9836165]
[1734492978799,23.776884,218.21,218.13,10.9836165]
[1734492979910,10.9836165,218.2,218.13,10.9836165]
[1734492980238,23.776884,218.19,218.13,10.9836165]
[1734492980413,10.983616,218.22,218.15,10.9836165]
[1734492980602,23.776884,218.21,218.15,10.9836165]
[1734492980998,10.983616,218.22,218.15,10.9836165]
[1734492981197,23.776884,218.22,218.15,10.9836165]
[1734492981816,23.776884,218.22,218.16,10.9836165]
[1734492982013,21.9672325,218.23,218.16,10.9836165]
[1734492982216,10.9836165,218.25,218.17,10.9836165]
[1734492982401,10.983617,218.25,218.2,10.9836165]
[1734492982602,10.9836165,218.29,218.21,10.9836165]
[1734492982909,10.9836165,218.29,218.12,2.31026244]
[1734492982910,10.983616,218.3,218.24,10.9836165]
[1734492983221,10.9836165,218.32,218.24,10.9836165]
[1734492983421,21.9672335,218.32,218.24,10.9836165]
[1734492983719,10.9836165,218.33,218.25,10.9836165]
[1734492984112,21.9672325,218.33,218.25,10.9836165]
[1734492984632,10.9836165,218.34,218.26,10.9836165]
[1734492984933,10.9836165,218.35,218.27,10.9836165]
[1734492985529,10.9836165,218.36,218.29,10.9836165]
[1734492985905,10.9836165,218.37,218.29,10.9836165]
[1734492986227,10.9836165,218.38,218.3,10.9836165]
[1734492986432,10.9836165,218.38,218.26,1.6228]
[1734492986433,10.9836165,218.38,218.31,10.9836165]
[1734492992864,10.9836165,218.42,218.35,10.9836165]
[1734492995471,10.9836165,218.4,218.33,10.9836165]
[1734492995970,23.776884,218.41,218.34,7.02116327]
[1734492995971,30.79804727,218.41,218.34,7.02116327]
[1734492996137,7.02116327,218.41,218.34,7.02116327]
[1734492996471,10.983616,218.43,218.38,7.02116327]
[1734492996638,7.02116327,218.45,218.38,7.02116327]
[1734492996956,7.02116327,218.44,218.37,7.02116327]
[1734492997671,1.81466879,218.51,218.35,1.6568]
[1734492997672,2.77795058,218.51,218.39,7.02116327]
[1734492997832,7.02116327,218.46,218.39,7.02116327]
[1734492998163,7.02116327,218.41,218.35,1.6568]
[1734492998463,7.5645986,218.47,218.35,1.6568]
[1734492998464,11.4437,218.46,218.35,1.6568]
[1734492998936,7.02116327,218.42,218.35,8.67796327]
[1734492999134,7.02116327,218.43,218.36,7.02116327]
[1734492999334,7.02116327,218.45,218.38,7.02116327]
[1734492999645,7.02116327,218.46,218.39,7.02116327]
[1734493000475,7.56459887,218.47,218.4,7.02116327]
[1734493000963,0.5434356,218.47,218.43,7.02116327]
[1734493001638,0.5434356,218.47,218.4,7.04566634]
[1734493001639,0.5434356,218.47,218.44,7.02116327]
[1734493001833,0.5434356,218.47,218.45,7.02116327]
[1734493002037,0.5434356,218.47,218.45,10.9596843]
[1734493002237,0.5434356,218.47,218.46,10.9596843]
[1734493002658,0.5434356,218.47,218.44,1.5158]
[1734493003638,0.5434356,218.47,218.44,12.4754843]
[1734493004456,0.5434356,218.47,218.46,10.9596843]
[1734493006038,0.5434356,218.47,218.46,11.64611152]
[1734493009487,0.17491324,218.47,218.46,11.64611152]
[1734493011085,0.17491324,218.47,218.46,35.42299552]
[1734493014377,10.9596843,218.6,218.49,20.0]
[1734493014571,10.9596843,218.61,218.54,10.9596843]
[1734493014882,10.9596843,218.6,218.53,10.9596843]
[1734493015282,10.9596843,218.59,218.51,10.9596843]
[1734493015491,10.9596843,218.58,218.51,10.9596843]
[1734493015954,10.9596843,218.58,218.5,10.9596843]
[1734493016159,10.9596843,218.56,218.48,10.9596843]
[1734493016368,10.9596843,218.56,218.49,10.9596843]
[1734493017164,10.9596843,218.57,218.5,10.9596843]
[1734493018655,10.9596843,218.57,218.49,10.9596843]
[1734493018892,10.9596843,218.56,218.48,10.9596843]
[1734493019553,10.9596843,218.54,218.44,1.5158]
[1734493019756,10.9596843,218.54,218.47,10.9596843]
[1734493020254,10.9596843,218.53,218.45,10.9596843]
[1734493020458,10.9596843,218.52,218.44,12.4754843]
[1734493020665,6.9322,218.56,218.41,10.9596843]
[1734493020666,10.9596843,218.49,218.41,10.9596843]
[1734493020891,10.9596843,218.48,218.41,10.9596843]
[1734493021180,34.7365683,218.47,218.39,12.6004843]
[1734493021354,10.9596843,218.41,218.33,1.6408]
[1734493021555,10.9596843,218.41,218.33,12.6004843]
[1734493021983,7.02098613,218.42,218.34,7.02098613]
[1734493022377,30.79787013,218.41,218.34,7.02098613]
[1734493022702,7.02098613,218.38,218.28,6.5799]
[1734493022999,7.02098613,218.37,218.3,7.02098613]
[1734493023374,7.02098613,218.38,218.3,7.02098613]
[1734493023761,7.02098613,218.38,218.31,7.02098613]
[1734493024065,10.97394788,218.38,218.31,10.97394788]
[1734493025798,10.97394788,218.36,218.29,10.97394788]
[1734493027199,23.776884,218.41,218.29,10.97394788]
[1734493027200,10.97394788,218.38,218.29,10.97394788]
[1734493027584,23.776884,218.37,218.31,10.97394788]
[1734493028133,23.776884,218.35,218.27,1.6408]
[1734493028295,23.776884,218.35,218.27,12.61474788]
[1734493029789,10.97394788,218.36,218.27,12.61474788]
[1734493029991,10.97394788,218.38,218.29,10.97394788]
[1734493030173,23.776884,218.37,218.29,10.97394788]
[1734493030880,20.24198919,218.46,218.33,10.97394788]
[1734493031080,18.376,218.46,218.36,10.97394788]
[1734493031298,10.97394788,218.43,218.35,10.97394788]
[1734493031475,10.97394788,218.43,218.36,10.97394788]
[1734493031676,10.97394788,218.41,218.34,10.97394788]
[1734493031881,18.376,218.46,218.35,10.97394788]
[1734493032080,10.97394788,218.43,218.35,10.97394788]
[1734493032584,10.97394788,218.44,218.37,10.97394788]
[1734493032784,10.97394788,218.45,218.38,10.97394788]
[1734493033602,10.97394788,218.48,218.41,10.97394788]
[1734493034091,10.97394788,218.44,218.37,10.97394788]
[1734493034771,29.27034888,218.5,218.43,10.97394788]
[1734493034976,18.296401,218.5,218.44,10.97394788]
[1734493036280,18.296401,218.5,218.37,0.68682435]
[1734493036281,18.296401,218.5,218.4,10.97394788]
[1734493036496,10.97394788,218.59,218.49,12.47844788]
[1734493036722,10.97394788,218.59,218.52,10.97394788]
[1734493037081,10.97394788,218.58,218.5,10.97394788]
[1734493037282,10.97394788,218.59,218.51,10.97394788]
[1734493041385,23.776884,218.58,218.51,10.97394788]
[1734493041711,10.97394788,218.55,218.48,10.97394788]
[1734493042223,10.97394788,218.56,218.48,10.97394788]
[1734493042724,23.776884,218.58,218.48,10.97394788]
[1734493042929,23.776884,218.58,218.44,22.25298464]
[1734493042930,34.75083188,218.58,218.5,10.97394788]
[1734493043259,23.776884,218.52,218.45,10.97394788]
[1734493043457,10.97394788,218.49,218.41,10.97394788]
[1734493043678,34.75083188,218.48,218.4,10.97394788]
[1734493044732,23.776884,218.48,218.41,10.97394788]
[1734493046366,10.97394788,218.51,218.43,10.97394788]
[1734493046532,23.776884,218.5,218.43,10.97394788]
[1734493046859,10.97394788,218.5,218.42,10.97394788]
[1734493047575,6.297,218.59,218.44,10.97394788]
[1734493047758,10.97394788,218.55,218.47,10.97394788]
[1734493048168,10.97394788,218.57,218.49,10.97394788]
[1734493048553,10.97394788,218.58,218.5,10.97394788]
[1734493048761,10.97394788,218.59,218.51,10.97394788]
[1734493049093,10.97394788,218.59,218.52,10.97394788]
[1734493049301,21.04501725,218.62,218.54,10.97394788]
[1734493049302,18.288305,218.62,218.54,10.97394788]
[1734493049451,29.26225288,218.62,218.54,10.97394788]
[1734493049646,10.97394788,218.6,218.54,10.97394788]
[1734493050883,10.97394788,218.61,218.53,10.97394788]
[1734493051055,10.97394788,218.61,218.5,2.25280538]
[1734493051056,10.97394788,218.59,218.5,12.54044788]
[1734493051249,10.97394788,218.57,218.5,12.54044788]
[1734493051800,10.97394788,218.58,218.5,12.54044788]
[1734493052952,23.776884,218.57,218.5,12.54044788]
[1734493053167,10.97394788,218.56,218.5,12.54044788]
[1734493053880,10.97394788,218.56,218.5,10.97394788]
[1734493054750,10.97394788,218.54,218.46,10.97394788]
[1734493054961,10.97394788,218.52,218.45,1.6178]
[1734493055164,10.97394788,218.56,218.48,10.97394788]
[1734493055365,10.97394788,218.56,218.49,10.97394788]
[1734493057271,10.97394788,218.58,218.5,10.97394788]
[1734493057486,10.97394788,218.59,218.51,10.97394788]
[1734493057778,34.75083188,218.58,218.5,10.97394788]
[1734493059303,18.288305,218.62,218.54,10.97394788]
[1734493059593,18.288305,218.62,218.55,1.6178]
[1734493059594,10.97394788,218.61,218.55,1.6178]
[1734493059892,10.97394788,218.59,218.51,10.97394788]
[1734493060102,18.288305,218.62,218.51,10.97394788]
[1734493060103,10.97394788,218.58,218.51,10.97394788]
[1734493060391,10.97394788,218.59,218.52,10.97394788]
[1734493061602,10.97394788,218.6,218.52,10.97394788]
[1734493062318,10.97394788,218.58,218.51,20.0]
[1734493062691,10.97394788,218.58,218.5,10.97394788]
[1734493065487,34.75083188,218.59,218.51,30.97394788]
[1734493066216,10.97394788,218.58,218.51,20.0]
[1734493066385,23.776884,218.59,218.39,1.6178]
[1734493066591,10.97394788,218.47,218.39,12.59174788]
[1734493066775,10.97394788,218.45,218.39,1.6178]
[1734493067526,10.97394788,218.44,218.39,1.6178]
[1734493068077,10.97394788,218.45,218.39,1.6178]
[1734493068673,10.97394788,218.46,218.39,12.59174788]
[1734493069314,10.97394788,218.46,218.39,1.6178]
[1734493070120,23.776884,218.45,218.39,1.6178]
[1734493072508,10.97394788,218.44,218.39,1.6178]
[1734493074710,34.75083188,218.45,218.39,1.6178]
[1734493077694,10.97394788,218.45,218.39,1.6178]
[1734493078497,10.97394788,218.49,218.41,10.97394788]
[1734493078705,14.210584,218.46,218.41,10.97394788]
[1734493078900,14.210584,218.46,218.39,12.59174788]
[1734493079205,10.97394788,218.45,218.39,1.6178]
[1734493079908,14.210584,218.46,218.39,12.59174788]
[1734493080711,34.75083188,218.45,218.37,10.97394788]
[1734493082330,23.776884,218.42,218.34,32.57464788]
[1734493082634,25.18453188,218.46,218.38,10.97394788]
[1734493082856,10.97394788,218.42,218.34,1.6007]
[1734493083033,10.97394788,218.38,218.32,10.97394788]
[1734493083348,10.97394788,218.38,218.3,10.97394788]
[1734493085814,10.97394788,218.36,218.28,12.58394788]
[1734493086137,23.776884,218.35,218.28,12.58394788]
[1734493087635,23.776884,218.35,218.26,6.2125]
[1734493087636,23.776884,218.33,218.26,10.97394788]
[1734493087838,10.97394788,218.32,218.24,10.97394788]
[1734493088037,23.776884,218.31,218.24,10.97394788]
[1734493088252,20.0,218.38,218.28,10.97394788]
[1734493088464,20.0,218.38,218.23,1.61]
[1734493088465,23.776884,218.37,218.31,10.97394788]
[1734493089575,10.97394788,218.42,218.34,10.97394788]
[1734493090142,10.97394788,218.42,218.33,1.61]
[1734493090143,10.97394788,218.44,218.36,10.97394788]
[1734493091176,10.97394788,218.42,218.34,10.97394788]
[1734493091363,23.776884,218.4,218.33,1.61]
[1734493091534,10.97394788,218.37,218.3,6.2125]
[1734493091734,10.97394788,218.36,218.28,12.58394788]
[1734493092436,10.97394788,218.34,218.25,6.2125]
[1734493092637,10.97394788,218.34,218.25,17.18644788]
[1734493092842,10.97394788,218.34,218.27,10.97394788]
[1734493095944,23.776884,218.33,218.25,17.18644788]
[1734493096144,10.97394788,218.32,218.25,17.18644788]
[1734493097054,10.97394788,218.34,218.25,17.18644788]
[1734493098378,10.97394788,218.34,218.27,10.97394788]
[1734493099372,10.97394788,218.34,218.25,6.2125]
[1734493099574,10.97394788,218.34,218.27,10.97394788]
[1734493104666,10.97394788,218.34,218.25,17.18644788]
[1734493105776,10.97394788,218.32,218.25,10.97394788]
[1734493107596,10.97394788,218.34,218.26,10.97394788]
[1734493110087,7.02543377,218.34,218.26,7.02543377]
[1734493112775,7.02543377,218.32,218.24,7.02543377]
[1734493112992,7.02543377,218.32,218.23,21.61]
[1734493112993,7.02543377,218.32,218.25,7.02543377]
[1734493116980,23.776884,218.37,218.27,7.02543377]
[1734493117311,23.776884,218.34,218.27,7.02543377]
[1734493117475,23.776884,218.32,218.23,1.61]
[1734493117679,7.02543377,218.28,218.23,1.61]
[1734493117987,23.776884,218.32,218.2,6.1851]
[1734493117988,7.02543377,218.26,218.2,6.1851]
[1734493118188,7.02543377,218.26,218.19,7.02543377]
[1734493118857,7.02543377,218.26,218.18,8.68093377]
[1734493119953,35.228384,218.32,218.18,8.68093377]
[1734493119954,7.02543377,218.25,218.18,8.68093377]
[1734493122005,7.02543377,218.23,218.18,1.6555]
[1734493122207,7.02543377,218.21,218.14,7.02543377]
[1734493122374,7.02543377,218.22,218.14,7.02543377]
[1734493122692,7.02543377,218.22,218.15,7.02543377]
[1734493123567,7.02543377,218.23,218.16,7.02543377]
[1734493124313,7.02543377,218.22,218.15,7.02543377]